bitfinex-derivatives/quotes_ETHF0:USTF0_20210703
["timestamp","ask_amount","ask_price","bid_price","bid_amount"]
[1625270641396,3.20527,2158.4,2158.0,2.20527]
[1625270642596,2.20527,2158.1,2158.0,2.20527]
[1625270642694,5.06817,2158.1,2158.0,2.20527]
[1625270644698,5.06817,2158.1,2156.5,5.0]
[1625270644849,6.06817,2158.1,2156.5,5.0]
[1625270644949,6.06817,2158.1,2156.4,16.70188886]
[1625270645050,6.06817,2158.1,2156.4,15.4006]
[1625270645251,6.06817,2158.1,2156.5,16.77051]
[1625270646651,2.20527,2157.3,2156.7,2.20527]
[1625270646753,4.87337,2157.3,2156.7,2.20527]
[1625270646951,5.87337,2157.3,2156.7,2.20527]
[1625270647303,4.87337,2157.3,2156.7,2.20527]
[1625270647706,3.77492581,2157.3,2156.7,2.20527]
[1625270648615,2.20527,2157.0,2156.7,2.20527]
[1625270649620,1.10682581,2157.3,2156.7,2.20527]
[1625270650580,1.10682581,2157.3,2157.2,2.20527]
[1625270651381,1.10682581,2157.3,2156.7,2.20527]
[1625270651732,2.10682581,2157.3,2156.7,2.20527]
[1625270651831,1.10682581,2157.3,2156.7,2.20527]
[1625270652684,1.10682581,2157.3,2157.2,2.20527]
[1625270652788,2.10682581,2157.3,2157.2,2.20527]
[1625270653287,1.10682581,2157.3,2157.2,2.20527]
[1625270653837,2.10682581,2157.3,2157.2,2.20527]
[1625270654339,1.10682581,2157.3,2157.2,2.20527]
[1625270654490,10.5409,2158.7,2157.2,2.20527]
[1625270654692,2.20527,2157.6,2157.2,2.20527]
[1625270655842,1.0,2157.5,2157.2,2.20527]
[1625270656193,1.0,2157.5,2155.6,0.9294]
[1625270656293,1.0,2157.5,2155.3,14.5093]
[1625270656744,2.20527,2157.0,2156.8,2.20527]
[1625270656843,1.0,2156.9,2156.8,2.20527]
[1625270657450,2.20527,2157.0,2156.8,2.20527]
[1625270657549,3.20527,2157.0,2156.8,2.20527]
[1625270659305,3.20527,2157.0,2155.7,47.1702]
[1625270659508,3.20527,2157.0,2155.4,14.8499]
[1625270660561,3.20527,2157.0,2154.5,14.3027]
[1625270660659,2.20527,2156.2,2156.0,2.20527]
[1625270660759,1.0,2156.1,2156.0,2.20527]
[1625270661462,4.83207,2156.2,2156.0,2.20527]
[1625270664241,1.0,2156.1,2156.0,2.20527]
[1625270664339,4.83207,2156.2,2156.0,2.20527]
[1625270665644,1.0,2156.1,2156.0,2.20527]
[1625270666146,1.0,2156.1,2153.4,1.29792825]
[1625270666352,6.0,2156.1,2153.4,1.29792825]
[1625270666504,8.0,2156.0,2154.2,13.6089]
[1625270666603,6.0,2155.9,2154.2,13.6089]
[1625270666701,8.0,2155.8,2154.2,13.6089]
[1625270666806,7.94234,2154.3,2154.2,13.6089]
[1625270666903,8.94234,2154.3,2154.2,13.6089]
[1625270667006,8.94234,2154.3,2153.7,2.20527]
[1625270668004,7.84255434,2154.3,2153.7,2.20527]
[1625270668304,2.6268,2156.2,2153.7,2.20527]
[1625270668404,1.0,2155.7,2153.8,5.0]
[1625270668605,1.0,2155.7,2153.7,4.91147]
[1625270668857,2.20527,2154.9,2154.7,2.20527]
[1625270670009,3.20527,2154.9,2154.7,2.20527]
[1625270670162,6.42637,2154.9,2152.2,1.29668202]
[1625270670261,6.42637,2154.9,2152.4,76.6073]
[1625270670810,2.20527,2154.3,2154.2,2.20527]
[1625270670910,5.33547,2154.3,2154.2,2.20527]
[1625270672763,7.54074,2154.3,2154.2,2.20527]
[1625270674369,8.54074,2154.3,2154.2,2.20527]
[1625270674570,8.54074,2154.3,2152.4,5.0]
[1625270674670,8.54074,2154.3,2152.5,5.0]
[1625270674770,2.20527,2153.7,2153.5,2.20527]
[1625270674921,2.20527,2154.3,2153.5,2.20527]
[1625270675026,1.0,2155.1,2153.6,5.0]
[1625270675173,14.4123,2155.3,2153.6,5.0]
[1625270675423,14.4123,2155.3,2153.5,2.20527]
[1625270675873,14.4123,2155.3,2153.5,52.16987]
[1625270676025,15.4123,2155.3,2153.6,19.683961]
[1625270676281,14.4123,2155.3,2153.6,19.683961]
[1625270676382,1.1,2156.6,2153.6,19.683961]
[1625270676585,8.0,2157.9,2153.6,35.329361]
[1625270676684,8.0,2157.9,2153.7,5.0]
[1625270676835,2.20527,2155.1,2155.0,2.20527]
[1625270677236,3.3905,2156.9,2155.0,2.20527]
[1625270677336,3.3905,2156.9,2155.0,5.96547]
[1625270678093,1.0,2156.8,2155.0,5.96547]
[1625270678801,2.20527,2155.9,2155.7,2.20527]
[1625270679049,1.0,2155.8,2155.7,2.20527]
[1625270679252,2.20527,2155.9,2155.7,2.20527]
[1625270679351,2.20527,2155.9,2154.5,2.3215]
[1625270679455,1.0,2155.8,2154.5,2.3215]
[1625270679556,1.0,2155.8,2153.8,14.2118]
[1625270680007,8.0,2155.7,2153.8,14.2118]
[1625270680107,6.0,2155.6,2153.8,14.2118]
[1625270680208,14.0,2155.6,2153.8,14.2118]
[1625270680312,9.0,2155.6,2153.8,14.2118]
[1625270680508,1.0,2155.6,2153.8,14.2118]
[1625270680708,1.0,2155.6,2152.0,14.6292]
[1625270680810,2.20527,2153.7,2153.6,2.20527]
[1625270680913,5.31467,2153.7,2153.6,2.20527]
[1625270681112,6.31467,2153.7,2153.6,2.20527]
[1625270681511,6.31467,2153.7,2153.4,2.20527]
[1625270681616,5.31467,2153.7,2153.4,2.20527]
[1625270682215,2.20527,2153.7,2153.4,2.20527]
[1625270682815,2.20527,2153.7,2153.6,2.20527]
[1625270683118,3.20527,2153.7,2153.6,2.20527]
[1625270683225,3.20527,2153.7,2153.4,2.20527]
[1625270683226,2.10504681,2153.7,2153.4,2.20527]
[1625270683566,1.10504681,2153.7,2153.4,2.20527]
[1625270683868,1.0,2153.6,2153.4,2.20527]
[1625270684572,4.1521,2153.6,2153.4,2.20527]
[1625270684773,3.1521,2153.6,2153.4,2.20527]
[1625270684872,3.1521,2153.6,2153.4,4.41054]
[1625270687292,3.2455,2156.4,2153.4,4.41054]
[1625270687395,8.0,2156.1,2153.4,7.80694]
[1625270687492,1.1,2155.8,2153.4,7.80694]
[1625270687895,1.0,2155.4,2153.4,7.80694]
[1625270687994,1.0,2155.2,2153.4,7.80694]
[1625270688142,3.643,2155.2,2153.5,16.879179]
[1625270688445,3.643,2155.2,2153.4,4.41054]
[1625270688843,2.20527,2154.1,2154.0,2.20527]
[1625270689096,3.20527,2154.1,2154.0,2.20527]
[1625270689193,3.20527,2154.1,2153.4,2.20527]
[1625270689597,3.20527,2154.1,2152.1,14.991]
[1625270689800,13.0,2154.0,2152.1,14.991]
[1625270689945,2.1,2153.9,2152.1,14.991]
[1625270690152,1.0,2153.9,2152.1,14.991]
[1625270690898,2.20527,2152.8,2152.1,14.991]
[1625270690998,1.0,2152.7,2152.1,14.991]
[1625270691199,1.0,2152.7,2150.2,15.2126]
[1625270691297,2.20527,2152.8,2151.8,5.0]
[1625270691598,2.20527,2152.8,2152.0,54.6022]
[1625270691698,2.20527,2152.8,2152.1,5.0]
[1625270691799,2.20527,2152.8,2152.0,54.6022]
[1625270691899,2.20527,2152.8,2151.3,2.5833]
[1625270692000,2.20527,2152.8,2152.1,16.941298]
[1625270692199,2.20527,2152.8,2151.3,2.5833]
[1625270692349,2.20527,2152.8,2151.4,5.0]
[1625270692501,3.20527,2152.8,2151.4,5.0]
[1625270692700,3.20527,2152.8,2150.2,15.2126]
[1625270692812,5.93077,2152.8,2150.2,15.2126]
[1625270692913,2.20527,2151.7,2151.6,2.20527]
[1625270693023,0.19807,2151.7,2151.6,2.20527]
[1625270693164,3.7255,2152.8,2151.6,2.20527]
[1625270693265,2.7255,2152.8,2151.6,5.82387]
[1625270693364,2.7255,2152.8,2151.7,5.0]
[1625270693465,14.6154,2154.0,2152.3,3.2484]
[1625270693722,17.2457,2154.0,2152.3,3.2484]
[1625270694417,1.0,2153.9,2152.3,3.2484]
[1625270694917,4.41054,2152.4,2152.3,3.2484]
[1625270695018,4.41054,2152.4,2152.2,2.20527]
[1625270695019,5.41054,2152.4,2152.2,2.20527]
[1625270696520,4.41054,2152.4,2152.2,2.20527]
[1625270696731,14.6154,2154.0,2152.2,2.20527]
[1625270696820,14.6154,2154.0,2152.3,5.0]
[1625270696924,2.20527,2153.0,2152.9,2.20527]
[1625270697521,4.64267,2153.0,2152.9,2.20527]
[1625270697622,5.64267,2153.0,2152.9,2.20527]
[1625270698535,5.64267,2153.0,2152.9,7e-05]
[1625270698636,5.64267,2153.0,2152.7,2.20527]
[1625270698990,2.20527,2152.8,2152.7,2.20527]
[1625270699089,3.20527,2152.8,2152.7,2.20527]
[1625270699292,3.20527,2152.8,2152.3,2.20527]
[1625270699844,2.20527,2152.8,2152.3,2.20527]
[1625270699942,1.10457334,2152.8,2152.3,2.20527]
[1625270700041,2.10457334,2152.8,2152.3,2.20527]
[1625270700893,2.10457334,2152.8,2152.7,2.20527]
[1625270707816,2.10457334,2152.8,2152.3,2.20527]
[1625270707911,5.56027334,2152.8,2152.3,2.20527]
[1625270708012,5.56027334,2152.8,2151.3,14.4863]
[1625270708967,2.20527,2151.8,2151.6,2.20527]
[1625270709067,3.20527,2151.8,2151.6,2.20527]
[1625270709614,3.20527,2151.8,2151.4,2.20527]
[1625270710920,3.20527,2151.8,2151.7,2.20527]
[1625270711372,3.20527,2151.8,2151.4,2.20527]
[1625270711521,6.14157,2151.8,2151.4,2.20527]
[1625270711671,6.14157,2151.8,2150.0,0.05]
[1625270712123,6.14157,2151.8,2150.0,5.05]
[1625270712486,6.14157,2151.8,2150.1,19.5201]
[1625270712931,2.20527,2151.2,2151.0,2.20527]
[1625270713627,2.20527,2151.8,2151.0,2.20527]
[1625270713731,2.20527,2151.8,2151.0,4.95547]
[1625270714438,2.20527,2151.8,2151.1,16.899394]
[1625270714745,2.20527,2151.8,2151.0,4.95547]
[1625270714947,2.20527,2151.8,2151.7,2.20527]
[1625270715198,3.20527,2151.8,2151.7,2.20527]
[1625270715398,1.1,2153.5,2151.7,4.77057]
[1625270715596,14.9589,2156.5,2151.7,4.77057]
[1625270715702,1.0,2154.1,2151.7,4.77057]
[1625270715845,1.0,2153.9,2151.7,4.77057]
[1625270716648,9.0,2153.9,2151.7,4.77057]
[1625270716848,5.0,2153.8,2151.7,4.77057]
[1625270716949,2.20527,2151.8,2151.7,4.77057]
[1625270717250,1.10432768,2151.8,2151.7,2.20527]
[1625270717904,2.10432768,2151.8,2151.7,2.20527]
[1625270718352,2.10432768,2151.8,2150.1,14.5201]
[1625270718451,2.10432768,2151.8,2150.1,19.5201]
[1625270718951,2.10432768,2151.8,2151.6,2.20527]
[1625270719655,2.10432768,2151.8,2150.1,14.5201]
[1625270720057,2.10432768,2151.8,2150.0,0.05]
[1625270721008,2.10432768,2151.8,2150.4,2.20527]
[1625270721009,2.20527,2150.5,2150.4,2.20527]
[1625270721207,3.20527,2150.5,2150.4,2.20527]
[1625270721360,3.20527,2150.5,2150.1,2.20527]
[1625270721361,3.20527,2150.5,2150.0,0.05]
[1625270723020,5.41054,2150.5,2150.4,2.20527]
[1625270723414,5.41054,2150.5,2149.8,2.7207]
[1625270723415,18.41054,2150.5,2149.2,4.0032]
[1625270723516,18.41054,2150.5,2147.3,2.61258281]
[1625270723765,18.41054,2150.5,2147.4,1.66032573]
[1625270723916,1.1,2150.4,2147.3,5.0]
[1625270724018,1.0,2150.3,2147.4,0.18227642]
[1625270724264,2.1,2150.3,2147.4,0.18227642]
[1625270724414,8.0,2150.2,2147.2,15.2009]
[1625270724515,1.0,2150.1,2147.2,15.2009]
[1625270724615,3.6287,2150.1,2147.2,15.2009]
[1625270724716,4.7287,2150.1,2147.2,20.2009]
[1625270725018,2.20527,2149.0,2148.9,2.20527]
[1625270725120,2.20527,2149.0,2148.9,5.99697]
[1625270725271,2.20527,2149.0,2148.9,3.7917]
[1625270725820,2.20527,2149.2,2148.9,3.7917]
[1625270726822,2.20527,2149.2,2148.9,0.9409]
[1625270729078,2.20527,2149.0,2148.9,0.9409]
[1625270730832,2.20527,2149.2,2148.9,0.9409]
[1625270731083,4.41054,2149.2,2149.1,2.20527]
[1625270732296,3.30820614,2149.2,2149.1,2.20527]
[1625270733055,3.30820614,2149.2,2148.9,3.14617]
[1625270733154,1.0,2149.1,2148.9,0.9409]
[1625270734005,1.0,2149.1,2148.6,2.20527]
[1625270734108,6.44640614,2149.2,2148.6,2.20527]
[1625270734208,1.10293614,2149.2,2148.6,2.20527]
[1625270735059,1.10293614,2149.2,2149.1,2.20527]
[1625270739165,1.10293614,2149.2,2149.1,4.41054]
[1625270739818,1.10293614,2149.2,2149.1,2.20527]
[1625270739968,2.10293614,2149.2,2149.1,2.20527]
[1625270740769,1.10293614,2149.2,2149.1,2.20527]
[1625270742977,1.10293614,2149.2,2149.1,5.41137]
[1625270745987,1.10293614,2149.2,2149.1,3.2061]
[1625270746084,1.10293614,2149.2,2148.7,2.20527]
[1625270747088,1.10293614,2149.2,2149.1,2.20527]
[1625270747389,0.00056411,2149.2,2149.1,2.20527]
[1625270749861,0.00056411,2149.2,2148.7,2.20527]
[1625270749963,2.85896411,2149.2,2148.3,4.759]
[1625270750061,1.0,2149.1,2148.3,4.759]
[1625270750215,9.0,2149.1,2148.3,4.759]
[1625270750411,1.0,2149.1,2147.2,13.8029]
[1625270750610,55.7708,2148.8,2147.2,13.8029]
[1625270750713,1.0,2148.7,2147.2,13.8029]
[1625270750815,4.4542,2148.7,2147.2,13.8029]
[1625270751163,2.20527,2147.8,2147.7,2.20527]
[1625270751364,5.21127,2147.8,2147.7,2.20527]
[1625270751465,6.21127,2147.8,2147.5,2.20527]
[1625270751567,5.21127,2147.8,2147.5,2.20527]
[1625270751815,1.0,2147.7,2147.5,2.20527]
[1625270751966,5.21127,2147.8,2147.5,2.20527]
[1625270752166,2.20527,2147.8,2147.5,2.20527]
[1625270753168,4.41054,2147.8,2147.5,2.20527]
[1625270754719,5.41054,2147.8,2147.5,2.20527]
[1625270755021,4.41054,2147.8,2147.5,2.20527]
[1625270755221,5.41054,2147.8,2147.5,2.20527]
[1625270755524,4.41054,2147.8,2147.5,2.20527]
[1625270755725,1.34423097,2152.8,2147.5,7.20527]
[1625270755876,1.1,2150.1,2147.5,2.20527]
[1625270756176,1.0,2149.3,2147.5,2.20527]
[1625270756374,1.0,2149.3,2147.6,16.919786]
[1625270756979,1.0,2149.3,2147.5,2.20527]
[1625270757186,2.20527,2148.4,2147.8,2.20527]
[1625270758432,1.0,2148.3,2147.8,2.20527]
[1625270758579,1.0,2148.3,2147.5,2.20527]
[1625270759182,2.20527,2148.1,2147.8,2.20527]
[1625270759633,6.10107,2148.1,2147.8,2.20527]
[1625270760230,6.10107,2148.1,2147.5,2.20527]
[1625270760483,5.10107,2148.1,2147.5,2.20527]
[1625270760684,2.20527,2148.1,2147.5,2.20527]
[1625270760881,2.20527,2148.4,2147.5,7.20527]
[1625270760985,2.20527,2148.4,2147.5,9.97687]
[1625270761183,2.20527,2148.4,2148.3,4.41054]
[1625270762436,1.10260362,2148.4,2148.3,21.26064]
[1625270762537,2.20527,2148.8,2148.3,21.26064]
[1625270763186,2.20527,2148.4,2148.3,21.26064]
[1625270763286,2.20527,2148.4,2148.3,4.41054]
[1625270764388,2.20527,2148.8,2148.3,4.41054]
[1625270764541,2.20527,2148.8,2148.3,8.05294]
[1625270764787,2.20527,2148.8,2148.4,16.937474]
[1625270764987,1.0,2149.3,2148.4,16.937474]
[1625270765238,2.20527,2149.0,2148.9,2.20527]
[1625270766240,2.20527,2149.0,2148.3,2.20527]
[1625270766689,1.0,2149.6,2148.3,2.20527]
[1625270766840,1.0,2149.6,2148.4,16.805073]
[1625270767240,2.20527,2149.3,2149.1,2.20527]
[1625270767490,3.20527,2149.3,2149.1,2.20527]
[1625270768243,3.20527,2149.3,2148.9,2.20527]
[1625270768352,2.20527,2149.3,2148.9,2.20527]
[1625270769110,2.20527,2149.5,2148.9,2.20527]
[1625270769210,2.20527,2149.5,2149.4,4.41054]
[1625270769665,3.20527,2149.5,2149.4,4.41054]
[1625270770023,2.20527,2149.5,2149.4,4.41054]
[1625270770925,3.20527,2149.8,2149.4,7.73784]
[1625270771226,3.20527,2149.8,2149.7,2.20527]
[1625270771429,2.20527,2149.8,2149.4,5.53257]
[1625270771530,3.20527,2149.8,2149.4,5.53257]
[1625270772480,2.20527,2149.8,2149.4,5.53257]
[1625270773232,2.20527,2149.8,2149.7,2.20527]
[1625270773435,3.20527,2149.8,2149.7,2.20527]
[1625270773833,2.20527,2149.8,2149.7,2.20527]
[1625270773933,3.20527,2149.8,2149.7,2.20527]
[1625270774539,2.20527,2149.8,2149.7,2.20527]
[1625270774943,2.20527,2149.8,2149.7,4.91427]
[1625270777806,3.20527,2149.8,2149.7,4.91427]
[1625270779365,2.20527,2149.8,2149.7,4.91427]
[1625270779468,1.0,2150.1,2149.7,4.91427]
[1625270780568,1.0,2150.1,2149.7,2.709]
[1625270780720,1.0,2150.1,2149.4,2.20527]
[1625270781270,1.0,2150.1,2149.4,4.41054]
[1625270783331,1.0,2150.1,2149.9,2.20527]
[1625270783433,1.0,2150.1,2149.9,5.47307]
[1625270785293,2.20527,2150.0,2149.9,5.47307]
[1625270785442,3.20527,2150.0,2149.9,5.47307]
[1625270785695,3.20527,2150.0,2149.2,3.6147]
[1625270785800,3.20527,2150.0,2148.7,3.312]
[1625270785898,13.0,2149.9,2148.1,1.33279593]
[1625270785994,2.1,2149.8,2148.1,1.33279593]
[1625270786094,13.0,2149.7,2148.1,1.33279593]
[1625270786245,4.6286,2149.6,2148.1,1.33279593]
[1625270786358,9.6286,2149.6,2148.1,1.33279593]
[1625270786456,51.7428,2149.0,2147.7,4.759]
[1625270786553,1.0,2148.9,2147.6,15.4799]
[1625270786653,3.6508,2148.9,2147.6,15.4799]
[1625270786755,3.6508,2148.9,2147.1,14.8349]
[1625270786857,3.6508,2148.9,2147.2,0.18660477]
[1625270787358,2.20527,2147.5,2147.2,2.39187477]
[1625270787508,7e-05,2147.5,2147.3,0.18654869]
[1625270787868,1.0,2148.9,2147.3,0.18654869]
[1625270788011,1.0,2148.9,2147.4,19.360449]
[1625270788110,1.0,2148.9,2147.4,24.360449]
[1625270788358,1.0,2148.9,2147.5,0.18603882]
[1625270789361,2.20527,2148.0,2147.9,2.20527]
[1625270791315,4.41054,2148.0,2147.9,2.20527]
[1625270793824,4.41054,2148.0,2147.9,2.39106331]
[1625270793922,1.0,2148.8,2147.9,2.39106331]
[1625270794023,1.0,2148.8,2147.9,5.55026331]
[1625270794171,1.0,2148.8,2147.9,5.36447]
[1625270795336,1.0,2148.8,2148.6,2.20527]
[1625270795337,2.20527,2148.7,2148.6,2.20527]
[1625270795436,2.20527,2148.7,2148.6,4.86647]
[1625270799043,3.20527,2148.7,2148.6,4.86647]
[1625270799144,3.20527,2148.7,2148.6,2.6612]
[1625270799293,3.20527,2148.7,2148.4,2.20527]
[1625270800256,5.81157,2148.7,2148.4,2.20527]
[1625270801453,2.20527,2148.5,2148.4,2.20527]
[1625270801554,3.20527,2148.5,2148.4,2.20527]
[1625270802863,3.20527,2148.5,2148.1,2.20527]
[1625270802864,50.18767,2148.5,2148.1,2.20527]
[1625270803061,52.95147,2148.5,2148.1,2.20527]
[1625270803371,2.20527,2148.2,2148.1,2.20527]
[1625270803475,3.20527,2148.2,2148.1,2.20527]
[1625270805831,3.20527,2148.2,2147.3,1.34760317]
[1625270806940,3.20527,2148.2,2147.6,1.34910275]
[1625270807490,4.41054,2147.7,2147.6,1.34910275]
[1625270807594,5.41054,2147.7,2147.6,1.34910275]
[1625270807741,5.41054,2147.7,2147.4,2.20527]
[1625270808899,5.41054,2147.7,2147.4,3.5567499]
[1625270809801,5.41054,2147.7,2147.5,1.35092559]
[1625270810199,4.41054,2147.7,2147.5,1.35092559]
[1625270810501,4.41054,2147.7,2147.6,1.34773423]
[1625270811059,5.41054,2147.7,2147.6,1.34773423]
[1625270811253,5.41054,2147.7,2147.5,2.69588617]
[1625270811404,4.41054,2147.7,2147.5,2.69588617]
[1625270811503,4.41054,2147.7,2147.6,1.34777759]
[1625270811803,5.41054,2147.7,2147.6,1.34777759]
[1625270811956,5.41054,2147.7,2147.5,2.69461727]
[1625270812158,5.41054,2147.7,2147.6,1.34778653]
[1625270812655,5.41054,2147.7,2147.5,2.395]
[1625270812855,4.41054,2147.7,2147.5,2.395]
[1625270812954,4.41054,2147.7,2147.5,5.08972223]
[1625270813314,4.41054,2147.7,2147.6,2.69621788]
[1625270814109,5.41054,2147.7,2147.6,2.69621788]
[1625270814411,5.41054,2147.7,2147.5,2.69710107]
[1625270814765,5.41054,2147.7,2147.5,4.04630441]
[1625270814863,5.41054,2147.7,2147.5,1.34920334]
[1625270814968,8.01464,2147.7,2147.5,1.34920334]
[1625270815117,8.01464,2147.7,2147.3,1.34969696]
[1625270815426,8.01464,2147.7,2147.2,3.55474832]
[1625270815526,2.20527,2147.3,2147.2,3.55474832]
[1625270815626,3.20527,2147.3,2147.2,3.55474832]
[1625270816076,3.20527,2147.3,2147.2,2.20527]
[1625270819081,3.20527,2147.3,2147.2,3.55421158]
[1625270825612,3.20527,2147.3,2147.2,2.20527]
[1625270825762,6.74967,2147.3,2147.2,2.20527]
[1625270826263,6.74967,2147.3,2147.1,1.34840359]
[1625270826612,6.74967,2147.3,2147.0,1.34883581]
[1625270827022,6.74967,2147.3,2146.5,14.2494]
[1625270827023,6.74967,2147.3,2146.7,1.35008237]
[1625270827323,6.74967,2147.3,2146.5,1.34998894]
[1625270827575,4.41054,2146.6,2146.4,1.35059651]
[1625270827674,1.0,2146.5,2146.4,1.35059651]
[1625270828274,8.19234,2146.6,2146.4,1.35059651]
[1625270828831,8.19234,2146.6,2146.3,1.35087208]
[1625270829280,8.19234,2146.6,2146.2,1.35130874]
[1625270829582,2.20527,2146.3,2146.2,1.35130874]
[1625270829835,2.20527,2146.3,2146.1,4.55585761]
[1625270830933,4.84117,2146.3,2146.1,4.90455235]
[1625270831236,4.84117,2146.3,2146.2,1.35023872]
[1625270831585,4.84117,2146.3,2146.1,4.55483499]
[1625270831785,4.84117,2146.3,2146.1,3.55483499]
[1625270832036,4.84117,2146.3,2146.1,4.90437517]
[1625270833141,4.84117,2146.3,2146.1,2.69910517]
[1625270833291,4.84117,2146.3,2146.1,1.31030517]
[1625270833591,2.20527,2146.2,2146.1,1.31030517]
[1625270833694,2.20527,2146.2,2145.9,2.69912999]
[1625270835448,2.20527,2146.2,2145.9,3.69912999]
[1625270835647,2.20527,2146.0,2145.9,3.69912999]
[1625270836148,2.20527,2146.0,2145.9,2.69912999]
[1625270836799,3.14137,2146.0,2145.9,2.69912999]
[1625270838072,2.20527,2146.0,2145.9,2.69912999]
[1625270838962,2.20527,2146.0,2145.9,1.99952999]
[1625270841817,2.20527,2146.0,2145.9,2.99952999]
[1625270843426,1.1013675,2146.0,2145.9,2.99952999]
[1625270843677,1.1013675,2146.0,2145.9,1.99952999]
[1625270843877,1.1013675,2146.0,2145.9,2.99952999]
[1625270851608,14.6911,2147.4,2145.9,2.99952999]
[1625270851704,2.20527,2146.8,2146.7,2.20527]
[1625270851806,1.20527,2146.8,2146.7,5.82677]
[1625270852810,1.0,2147.1,2146.7,5.82677]
[1625270852910,16.4602,2148.7,2146.7,5.82677]
[1625270853717,2.20527,2147.4,2147.2,2.20527]
[1625270853817,1.0,2147.3,2147.2,2.20527]
[1625270857677,4.41054,2147.4,2147.2,2.20527]
[1625270858530,1.0,2147.3,2147.2,2.20527]
[1625270859633,4.41054,2147.4,2147.2,2.20527]
[1625270859782,5.41054,2147.4,2147.2,2.20527]
[1625270860130,4.41054,2147.4,2147.2,2.20527]
[1625270860792,1.0,2147.3,2147.2,2.20527]
[1625270862551,4.41054,2147.4,2147.2,2.20527]
[1625270862652,4.41054,2147.4,2147.2,5.81377]
[1625270863750,4.41054,2147.4,2147.2,8.01904]
[1625270868465,5.41054,2147.4,2147.2,8.01904]
[1625270869528,4.41054,2147.4,2147.2,8.01904]
[1625270870333,5.41054,2147.4,2147.2,8.01904]
[1625270870731,4.41054,2147.4,2147.2,8.01904]
[1625270871479,5.41054,2147.4,2147.2,8.01904]
[1625270871729,4.41054,2147.4,2147.2,8.01904]
[1625270873235,5.41054,2147.4,2147.2,8.01904]
[1625270874495,4.41054,2147.4,2147.2,8.01904]
[1625270874850,5.41054,2147.4,2147.2,8.01904]
[1625270875152,5.41054,2147.4,2147.2,5.81377]
[1625270875252,5.41054,2147.4,2147.2,3.6085]
[1625270875354,5.41054,2147.4,2146.2,2.70077961]
[1625270875551,5.41054,2147.4,2146.3,0.1888002]
[1625270875802,5.41054,2147.4,2147.1,2.20527]
[1625270879413,62.69014,2147.4,2147.1,2.20527]
[1625270883391,62.69014,2147.4,2146.9,2.20527]
[1625270883841,2.20527,2147.0,2146.9,2.20527]
[1625270883941,3.20527,2147.0,2146.9,2.20527]
[1625270886303,3.20527,2147.0,2146.5,2.20527]
[1625270886410,6.28617,2147.0,2146.0,2.70544022]
[1625270886808,6.28617,2147.0,2145.8,2.70660426]
[1625270886906,6.28617,2147.0,2145.9,0.1891319]
[1625270887257,6.28617,2147.0,2145.8,2.70660426]
[1625270887861,2.20527,2146.3,2146.2,2.20527]
[1625270887959,3.20527,2146.3,2146.2,2.20527]
[1625270889962,5.41054,2146.3,2146.2,2.20527]
[1625270890167,4.41054,2146.3,2146.2,2.20527]
[1625270891663,1.0,2146.6,2146.2,2.20527]
[1625270892015,3.20527,2146.6,2146.2,2.20527]
[1625270893969,2.20527,2146.3,2146.2,2.20527]
[1625270894072,5.78297,2146.3,2146.2,2.20527]
[1625270894827,55.08537,2146.3,2146.2,2.20527]
[1625270895779,55.08537,2146.3,2145.7,2.71646295]
[1625270895986,2.20527,2145.9,2145.7,4.92173295]
[1625270896085,1.0,2145.8,2145.7,4.92173295]
[1625270896338,1.0,2145.8,2145.7,2.20527]
[1625270897887,1.0,2145.8,2145.4,2.72166132]
[1625270897988,2.20527,2145.6,2145.4,4.92693132]
[1625270898690,1.0,2145.5,2145.4,4.92693132]
[1625270898894,1.0,2145.5,2145.4,2.20527]
[1625270899241,2.20527,2145.6,2145.4,2.20527]
[1625270899542,2.20527,2145.6,2145.4,4.92670277]
[1625270899945,2.20527,2145.6,2145.5,2.20527]
[1625270900899,3.14277,2145.6,2145.5,2.20527]
[1625270901401,2.20527,2145.6,2145.5,2.20527]
[1625270901499,2.20527,2145.6,2145.5,4.92661556]
[1625270902055,2.20527,2145.6,2145.5,2.20527]
[1625270903766,2.20527,2145.6,2145.5,4.92673662]
[1625270904422,2.20527,2145.6,2145.5,4.10997196]
[1625270905473,2.20527,2145.6,2145.5,4.92640609]
[1625270906326,3.20527,2145.6,2145.5,4.10972093]
[1625270906426,3.20527,2145.6,2145.5,1.90445093]
[1625270906526,2.20527,2145.6,2145.5,1.90445093]
[1625270906631,2.20527,2145.6,2145.4,1.90532901]
[1625270907729,1.0,2145.5,2145.4,1.90532901]
[1625270907928,2.20527,2145.6,2145.4,1.90532901]
[1625270908031,2.20527,2145.6,2145.4,4.11059901]
[1625270909186,3.20527,2145.6,2145.4,4.11059901]
[1625270909443,2.20527,2145.6,2145.4,4.11059901]
[1625270909596,2.20527,2145.6,2145.5,1.90558743]
[1625270909895,3.20527,2145.6,2145.5,1.90558743]
[1625270910199,3.20527,2145.6,2145.4,4.11066763]
[1625270910850,3.20527,2145.6,2145.4,2.20527]
[1625270911196,2.20527,2145.6,2145.4,2.20527]
[1625270911401,2.20527,2145.6,2145.4,4.11027836]
[1625270912048,3.20527,2145.6,2145.4,4.11027836]
[1625270912403,3.20527,2145.6,2145.4,2.20527]
[1625270912499,2.20527,2145.6,2145.4,2.20527]
[1625270913002,3.20527,2145.6,2145.4,4.11059371]
[1625270913100,2.20527,2145.6,2145.4,4.11059371]
[1625270913252,2.20527,2145.6,2145.4,2.20527]